bitfinex-derivatives/quotes_BTCF0:USTF0_20251009
["timestamp","ask_amount","ask_price","bid_price","bid_amount"]
[1759999099197,0.65573738,121580.0,121570.0,3.1737887]
[1759999099402,0.65573738,121580.0,121570.0,3.4937887]
[1759999099603,0.3987338,121580.0,121570.0,3.4937887]
[1759999099804,0.65573738,121580.0,121570.0,3.4938287]
[1759999100106,0.3987338,121580.0,121570.0,3.4938287]
[1759999100308,0.41804472,121580.0,121570.0,2.99939228]
[1759999100602,0.41804472,121580.0,121570.0,3.4937887]
[1759999100808,0.41804472,121580.0,121570.0,3.4938287]
[1759999101008,0.6750483,121580.0,121570.0,2.7423887]
[1759999101201,0.6750483,121580.0,121570.0,3.4938287]
[1759999101404,0.65573738,121580.0,121570.0,3.4938287]
[1759999101707,0.3987338,121580.0,121570.0,3.4938287]
[1759999101904,0.65573738,121580.0,121570.0,3.4938287]
[1759999102104,1.08276738,121580.0,121570.0,0.3689087]
[1759999102304,1.08276738,121580.0,121570.0,1.2103487]
[1759999102502,1.08276738,121580.0,121570.0,1.1203487]
[1759999102702,0.8257638,121580.0,121570.0,1.11224]
[1759999102904,1.08276738,121580.0,121570.0,1.11224]
[1759999103107,1.08276738,121580.0,121570.0,1.21224]
[1759999103508,1.08276738,121580.0,121570.0,1.11224]
[1759999103708,1.08276738,121580.0,121560.0,2.42258251]
[1759999103709,0.0988606,121570.0,121560.0,2.42258251]
[1759999103914,0.4088606,121570.0,121560.0,3.50402251]
[1759999104308,0.66586418,121570.0,121560.0,3.50402251]
[1759999104511,0.4088606,121570.0,121560.0,3.50402251]
[1759999104706,0.66586418,121570.0,121560.0,3.50402251]
[1759999105610,0.66586418,121570.0,121560.0,2.92508]
[1759999105809,0.1265373,121560.0,121550.0,0.3608783]
[1759999106011,0.69354088,121560.0,121550.0,3.49464813]
[1759999106506,0.69354088,121560.0,121550.0,2.42316813]
[1759999106808,1.05434088,121560.0,121550.0,2.92384813]
[1759999107503,0.4365373,121560.0,121550.0,2.35236813]
[1759999107703,0.69354088,121560.0,121550.0,3.46464813]
[1759999107899,0.4365373,121560.0,121550.0,3.46464813]
[1759999108104,0.4365373,121560.0,121550.0,3.05242581]
[1759999108402,0.4365373,121560.0,121550.0,3.80390581]
[1759999108610,0.4365373,121560.0,121550.0,2.97017171]
[1759999108807,0.4365373,121560.0,121550.0,3.72165171]
[1759999109400,0.4365373,121560.0,121550.0,2.71316813]
[1759999109604,0.69354088,121560.0,121550.0,3.46468813]
[1759999110012,0.69354088,121560.0,121550.0,3.46484813]
[1759999110303,0.69354088,121560.0,121550.0,0.24848813]
[1759999110504,0.69354088,121560.0,121550.0,1.36080813]
[1759999110907,0.69354088,121560.0,121550.0,1.00000813]
[1759999111612,0.4365373,121560.0,121550.0,1.00000813]
[1759999111814,0.69354088,121560.0,121550.0,1.36080813]
[1759999112202,0.4365373,121560.0,121550.0,1.36080813]
[1759999112413,0.69354088,121560.0,121550.0,1.36080813]
[1759999112614,0.69354088,121560.0,121550.0,0.60928813]
[1759999112907,0.4365373,121560.0,121550.0,1.36080813]
[1759999113513,0.4365373,121560.0,121550.0,0.60928813]
[1759999113813,0.4365373,121560.0,121550.0,1.36080813]
[1759999114315,0.69354088,121560.0,121550.0,0.60928813]
[1759999114516,0.4365373,121560.0,121550.0,1.00000813]
[1759999114808,0.4365373,121560.0,121550.0,1.36080813]
[1759999115013,0.4365373,121560.0,121550.0,0.86629171]
[1759999115213,0.4365373,121560.0,121550.0,1.61781171]
[1759999116213,0.45585303,121560.0,121550.0,1.61781171]
[1759999118212,0.45585303,121560.0,121550.0,1.36080813]
[1759999122416,0.46243303,121560.0,121550.0,1.36080813]
[1759999122611,0.35251573,121560.0,121550.0,1.34854581]
[1759999122816,0.35251573,121560.0,121550.0,0.94854581]
[1759999123018,0.33589573,121560.0,121550.0,0.94854581]
[1759999123317,0.33597403,121560.0,121550.0,2.09802581]
[1759999123514,0.33597403,121560.0,121550.0,2.09806581]
[1759999123716,0.33597403,121560.0,121550.0,2.09802581]
[1759999123916,0.3166583,121560.0,121550.0,2.09802581]
[1759999124315,0.3333183,121560.0,121550.0,3.06172813]
[1759999124515,0.3333183,121560.0,121550.0,4.07021171]
[1759999124920,0.3333183,121560.0,121550.0,3.89546223]
[1759999125220,0.4155657,121560.0,121550.0,1.00728813]
[1759999125423,0.4440757,121560.0,121550.0,2.66168813]
[1759999125613,0.4440757,121560.0,121550.0,3.67017171]
[1759999126222,0.46346535,121560.0,121550.0,3.67017171]
[1759999127218,0.46346535,121560.0,121550.0,2.66164813]
[1759999127413,0.46346535,121560.0,121550.0,3.41308813]
[1759999128514,0.46346535,121560.0,121550.0,2.66164813]
[1759999128814,0.46346535,121560.0,121550.0,3.67009171]
[1759999129515,0.43495535,121560.0,121550.0,3.67009171]
[1759999130220,0.46346535,121560.0,121550.0,0.86429171]
[1759999130423,0.46346535,121560.0,121550.0,3.67005171]
[1759999130617,0.46346535,121560.0,121550.0,3.41304813]
[1759999130818,0.46346535,121560.0,121550.0,3.67005171]
[1759999131223,0.46346535,121560.0,121550.0,3.41304813]
[1759999131414,0.46346535,121560.0,121550.0,3.67005171]
[1759999133419,0.43495535,121560.0,121550.0,2.91865171]
[1759999133725,0.33604795,121560.0,121550.0,4.15226581]
[1759999133920,0.33604795,121560.0,121550.0,4.28121393]
[1759999134425,0.3166583,121560.0,121550.0,4.28121393]
[1759999136326,0.3166583,121560.0,121550.0,4.28117393]
[1759999136825,0.2039683,121560.0,121550.0,3.72282978]
[1759999137026,0.2039683,121560.0,121550.0,1.08954223]
[1759999137227,0.2039683,121560.0,121550.0,4.28113393]
[1759999137824,0.2039683,121560.0,121550.0,1.47549393]
[1759999138025,0.2039683,121560.0,121550.0,3.52977393]
[1759999138226,0.2039683,121560.0,121550.0,1.47549393]
[1759999138526,0.2039683,121560.0,121550.0,4.28109393]
[1759999138727,0.2039683,121560.0,121550.0,1.47549393]
[1759999138928,0.2039683,121560.0,121550.0,4.28101393]
[1759999139116,0.2039683,121560.0,121550.0,1.47549393]
[1759999139317,0.2039683,121560.0,121550.0,1.08954223]
[1759999139524,0.2862157,121560.0,121550.0,2.85450398]
[1759999139933,0.2039683,121560.0,121550.0,3.60578398]
[1759999140124,0.2039683,121560.0,121550.0,3.79875983]
[1759999140325,0.2039683,121560.0,121550.0,3.88101393]
[1759999141028,0.2039683,121560.0,121550.0,0.99323983]
[1759999141233,0.2039683,121560.0,121550.0,3.79867983]
[1759999141532,0.3130556,121560.0,121550.0,3.06148813]
[1759999141828,0.50603145,121560.0,121550.0,3.60570398]
[1759999142031,0.3130556,121560.0,121550.0,3.60570398]
[1759999142225,0.3130556,121560.0,121550.0,0.43946398]
[1759999142226,0.50603145,121560.0,121550.0,0.43946398]
[1759999142528,0.52538418,121560.0,121550.0,3.24490398]
[1759999143029,0.33240833,121560.0,121550.0,3.24490398]
[1759999143329,0.52538418,121560.0,121550.0,2.49366398]
[1759999143722,0.92538418,121560.0,121550.0,3.05188813]
[1759999143923,0.92538418,121560.0,121550.0,0.43946398]
[1759999144121,0.92538418,121560.0,121550.0,3.24486398]
[1759999144322,0.92538418,121560.0,121550.0,0.24648813]
[1759999144530,0.92538418,121560.0,121550.0,3.05188813]
[1759999145129,0.92538418,121560.0,121550.0,2.49366398]
[1759999145334,0.92538418,121560.0,121550.0,3.24486398]
[1759999146228,0.73240833,121560.0,121550.0,3.24486398]
[1759999146431,0.92538418,121560.0,121550.0,3.24486398]
[1759999147331,0.73240833,121560.0,121550.0,2.85446398]
[1759999147532,0.2039683,121560.0,121550.0,3.79863983]
[1759999147829,0.2862156,121560.0,121550.0,3.60566398]
[1759999150430,0.47919145,121560.0,121550.0,2.85446398]
[1759999150639,0.2862156,121560.0,121550.0,3.41268813]
[1759999150828,0.2862156,121560.0,121550.0,3.60566398]
[1759999151132,0.47919145,121560.0,121550.0,3.60566398]
[1759999152334,0.2862156,121560.0,121550.0,2.85446398]
[1759999152523,0.2862156,121560.0,121550.0,3.60566398]
[1759999152729,0.2862156,121560.0,121550.0,3.60562398]
[1759999153938,0.2862156,121560.0,121550.0,2.85446398]
[1759999154138,0.2862156,121560.0,121550.0,3.60562398]
[1759999155234,0.2862156,121560.0,121550.0,2.85446398]
[1759999155437,0.2862156,121560.0,121550.0,3.60562398]
[1759999155840,0.3130556,121560.0,121550.0,3.41280813]
[1759999156137,0.3130556,121560.0,121550.0,3.60578398]
[1759999156937,0.3130556,121560.0,121550.0,2.85462398]
[1759999157236,0.50603145,121560.0,121550.0,2.85462398]
[1759999157442,0.50603145,121560.0,121550.0,3.60578398]
[1759999158036,0.50603145,121560.0,121550.0,2.85462398]
[1759999158236,0.50603145,121560.0,121550.0,3.41280813]
[1759999158541,0.50603145,121560.0,121550.0,2.85462398]
[1759999158840,0.50603145,121560.0,121550.0,3.60578398]
[1759999159136,0.2039683,121560.0,121550.0,3.49506223]
[1759999159344,0.2039683,121560.0,121550.0,3.71314978]
[1759999159539,0.2039683,121560.0,121550.0,3.52017393]
[1759999159937,0.2039683,121560.0,121550.0,4.24177393]
[1759999161342,0.2039683,121560.0,121550.0,3.89065393]
[1759999161542,0.2039683,121560.0,121550.0,4.83474978]
[1759999161842,0.2039683,121560.0,121550.0,4.64177393]
[1759999165441,0.2039683,121560.0,121550.0,4.25582223]
[1759999165638,0.2039683,121560.0,121550.0,4.64177393]
[1759999166743,0.2039683,121560.0,121550.0,4.71554331]
[1759999167947,0.2039683,121560.0,121550.0,4.71542331]
[1759999168744,0.2039683,121560.0,121550.0,3.96442331]
[1759999168944,0.2039683,121560.0,121550.0,4.71542331]
[1759999170437,0.2039683,121560.0,121550.0,4.71538331]
[1759999170641,0.2039683,121560.0,121550.0,3.57847161]
[1759999170843,0.2039683,121560.0,121550.0,4.90835916]
[1759999172146,0.2039683,121560.0,121550.0,4.71538331]
[1759999172341,0.2039683,121560.0,121550.0,4.90835916]
[1759999173251,0.2039683,121560.0,121550.0,4.71538331]
[1759999173748,0.0082482,121580.0,121570.0,0.0822406]
[1759999173950,0.0082482,121580.0,121570.0,1.5297923]
[1759999173951,0.2882482,121580.0,121570.0,1.5297923]
[1759999174152,0.2882482,121580.0,121570.0,4.3348723]
[1759999175040,0.2882482,121580.0,121570.0,1.5297923]
[1759999175242,0.2882482,121580.0,121570.0,3.1980006]
[1759999175448,0.2882482,121580.0,121570.0,3.9488806]
[1759999175654,0.2882482,121580.0,121570.0,4.3348323]
[1759999176248,0.2882482,121580.0,121570.0,1.4475517]
[1759999176454,0.2882482,121580.0,121570.0,4.3347923]
[1759999177355,0.2882482,121580.0,121570.0,4.3347523]
[1759999177551,0.2882482,121580.0,121570.0,1.5297923]
[1759999177752,0.2882482,121580.0,121570.0,3.5016717]
[1759999178051,0.2882482,121580.0,121570.0,3.86656]
[1759999178246,0.2882482,121580.0,121570.0,3.5016717]
[1759999178446,0.2882482,121580.0,121570.0,3.5839123]
[1759999178648,0.2882482,121580.0,121570.0,4.3347523]
[1759999178852,0.2882482,121580.0,121570.0,4.05953585]
[1759999179049,0.2882482,121580.0,121570.0,1.4475517]
[1759999179246,0.2882482,121580.0,121570.0,3.30865585]
[1759999179442,0.96345785,121580.0,121570.0,3.11568]
[1759999179766,1.1838437,121580.0,121570.0,0.7008]
[1759999180052,1.1838437,121580.0,121570.0,0.3608]
[1759999180246,1.1838437,121580.0,121570.0,2.05408]
[1759999180453,1.1838437,121580.0,121570.0,2.80488]
[1759999181049,0.797892,121580.0,121570.0,2.05408]
[1759999181246,0.797892,121580.0,121570.0,2.80488]
[1759999181446,1.1838437,121580.0,121570.0,2.80488]
[1759999181753,0.1258006,121570.0,121560.0,2.41488]
[1759999181946,0.61877645,121570.0,121560.0,2.15408]
[1759999182152,1.01877645,121570.0,121560.0,3.08488]
[1759999182347,0.61877645,121570.0,121560.0,3.08488]
[1759999183555,0.61877645,121570.0,121560.0,3.27785585]
[1759999183755,0.61877645,121570.0,121560.0,2.52705585]
[1759999183955,0.61877645,121570.0,121560.0,3.27785585]
[1759999184854,0.4258006,121570.0,121560.0,3.27785585]
[1759999185056,0.61877645,121570.0,121560.0,3.08488]
[1759999185266,0.61877645,121570.0,121560.0,3.27785585]
[1759999186159,0.4258006,121570.0,121560.0,3.63865585]
[1759999186358,0.61877645,121570.0,121560.0,3.63865585]
[1759999186659,0.61877645,121570.0,121560.0,3.44568]
[1759999186860,0.61877645,121570.0,121560.0,3.63865585]
[1759999188172,0.61877645,121570.0,121560.0,2.88785585]
[1759999188374,0.4258006,121570.0,121560.0,3.63865585]
[1759999188670,0.61877645,121570.0,121560.0,3.63865585]
[1759999188973,0.61877645,121570.0,121560.0,3.44568]
[1759999189462,0.61877645,121570.0,121560.0,3.63865585]
[1759999189662,0.4258006,121570.0,121560.0,3.63865585]
[1759999189862,0.61877645,121570.0,121560.0,2.88785585]
[1759999190071,0.61877645,121570.0,121560.0,3.63861585]
[1759999191577,0.61877645,121570.0,121560.0,3.44564]
[1759999191765,0.61877645,121570.0,121560.0,3.63861585]
[1759999191970,0.63806425,121570.0,121560.0,2.41508]
[1759999192165,0.63806425,121570.0,121560.0,0.6308]
[1759999192369,0.0986473,121560.0,121550.0,2.06076813]
[1759999192573,0.784599,121560.0,121550.0,3.13152813]
[1759999192767,1.20388385,121560.0,121550.0,3.13152813]
[1759999192967,1.20388385,121560.0,121550.0,2.38076813]
[1759999193173,1.20388385,121560.0,121550.0,3.13152813]
[1759999193978,1.0753976,121560.0,121550.0,3.13152813]
[1759999194182,0.81793215,121560.0,121550.0,3.13152813]
[1759999194373,1.0753976,121560.0,121550.0,3.13152813]
[1759999194575,1.05611275,121560.0,121550.0,3.13152813]
[1759999195780,1.08386275,121560.0,121550.0,0.32648813]
[1759999195981,0.0986541,121550.0,121540.0,2.41516]
[1759999196176,0.64611955,121550.0,121540.0,2.91508]
[1759999196376,0.1264109,121540.0,121530.0,0.3608]
[1759999196577,0.4164109,121540.0,121530.0,3.45588]
[1759999196978,0.67387635,121540.0,121530.0,2.71351778]
[1759999197281,0.67387635,121540.0,121530.0,3.46423778]
[1759999197880,0.4164109,121540.0,121530.0,3.46423778]
[1759999198376,0.4164109,121540.0,121530.0,2.71351778]
[1759999198576,0.4164109,121540.0,121530.0,3.46427778]
[1759999199578,0.67387635,121540.0,121530.0,3.46427778]
[1759999199783,0.67387635,121540.0,121530.0,3.46443778]
[1759999200472,0.67387635,121540.0,121530.0,0.65915778]
[1759999200674,0.67387635,121540.0,121530.0,2.16456]
[1759999200675,1.07387635,121540.0,121530.0,2.16456]
[1759999200985,1.43467635,121540.0,121530.0,2.05456]
[1759999201384,1.43467635,121540.0,121530.0,2.80532]
[1759999202178,1.43467635,121540.0,121530.0,2.92532]
[1759999202381,1.43467635,121540.0,121530.0,2.80532]
[1759999202774,1.43467635,121540.0,121530.0,2.91532]
[1759999202974,0.4164109,121540.0,121530.0,3.14570411]
[1759999203178,0.4164109,121540.0,121530.0,3.40316956]
[1759999203381,0.4164109,121540.0,121530.0,3.14570411]
[1759999203583,0.33415,121540.0,121530.0,3.01320956]
[1759999203784,0.33415,121540.0,121530.0,3.76396956]
[1759999203981,0.3064,121540.0,121530.0,3.41320956]
[1759999204481,0.3364,121540.0,121530.0,3.41320956]
[1759999204682,0.3364,121540.0,121530.0,4.16400956]
[1759999204986,0.3364,121540.0,121530.0,4.16416956]
[1759999205176,0.3364,121540.0,121530.0,3.41336956]
[1759999205380,0.3364,121540.0,121530.0,4.16412956]
[1759999205682,0.3364,121540.0,121530.0,4.08186196]
[1759999205876,0.36415,121540.0,121530.0,0.88863393]
[1759999206077,0.4464109,121540.0,121530.0,2.67363651]
[1759999206285,0.4464109,121540.0,121530.0,3.42439651]
[1759999206786,0.4464109,121540.0,121530.0,2.06283651]
[1759999206787,0.71612832,121540.0,121530.0,2.06283651]
[1759999207084,0.1264176,121530.0,121520.0,0.3608]
[1759999207281,0.71613502,121530.0,121520.0,2.53548]
[1759999207481,0.71613502,121530.0,121520.0,3.44624]
[1759999207682,0.4464176,121530.0,121520.0,3.44624]
[1759999208287,0.4464176,121530.0,121520.0,0.6408]
[1759999208485,0.4464176,121530.0,121520.0,2.69552]
[1759999208786,0.4464176,121530.0,121520.0,0.3608]
[1759999208986,0.8464176,121530.0,121520.0,2.51552]
[1759999209181,0.0986744,121520.0,121510.0,0.3608]
[1759999209388,0.4064244,121520.0,121510.0,3.47448748]
[1759999209683,0.4064244,121520.0,121510.0,2.52552]
[1759999209880,1.07614182,121520.0,121510.0,2.16472]
[1759999210482,1.07614182,121520.0,121500.0,0.36088498]
[1759999210483,0.1264312,121510.0,121500.0,8.498e-05]
[1759999210681,0.66614862,121510.0,121500.0,0.75084498]
[1759999210881,0.66614862,121510.0,121500.0,0.05008498]
[1759999211189,0.3964312,121510.0,121500.0,1.07084498]
[1759999211380,0.41599139,121510.0,121500.0,0.32008498]
[1759999211585,0.41599139,121510.0,121500.0,1.07080498]
[1759999211785,0.41599139,121510.0,121500.0,0.32008498]
[1759999211981,0.41599139,121510.0,121500.0,1.07084498]
[1759999213083,0.41599139,121510.0,121500.0,8.498e-05]
[1759999213284,0.68570881,121510.0,121500.0,8.498e-05]
[1759999213486,0.41599139,121510.0,121500.0,0.33008498]
[1759999213782,0.41599139,121510.0,121500.0,1.08084498]
[1759999214390,0.41599139,121510.0,121500.0,1.44164498]
[1759999214790,0.3964312,121510.0,121500.0,1.44164498]
[1759999215393,1.44647571,121510.0,121500.0,0.77088498]
[1759999215589,1.42694862,121510.0,121500.0,8.498e-05]
[1759999215790,1.42694862,121510.0,121500.0,0.75088498]
[1759999215992,1.44647579,121510.0,121500.0,0.75088498]
[1759999216189,1.17675837,121510.0,121500.0,0.75088498]
[1759999216493,1.44647579,121510.0,121500.0,8e-08]
[1759999216698,1.08567579,121510.0,121500.0,8e-08]
[1759999216899,1.80727579,121510.0,121500.0,0.75080008]
[1759999217198,0.0986947,121490.0,121480.0,2.05504]
[1759999217393,0.4086947,121490.0,121480.0,3.12584]
[1759999217793,0.4086947,121490.0,121480.0,3.13392642]
[1759999217992,0.40877968,121490.0,121480.0,2.38312642]
[1759999218193,0.40877968,121490.0,121480.0,3.13396642]
[1759999218194,0.42834115,121490.0,121480.0,3.13396642]
[1759999219393,0.42834115,121490.0,121480.0,2.90588]
[1759999219804,0.1264515,121480.0,121470.0,0.3608]
[1759999220098,0.4364515,121480.0,121470.0,3.37688]
[1759999220396,0.4364515,121480.0,121470.0,0.3608]
[1759999220587,0.70616892,121480.0,121470.0,0.3608]
[1759999220790,0.0987083,121470.0,121460.0,2.41608]
[1759999220992,0.40879328,121470.0,121460.0,2.41608]
[1759999221196,0.40879328,121470.0,121460.0,3.27696]
[1759999221896,0.42906876,121470.0,121460.0,3.50696]
[1759999223303,0.34676046,121470.0,121460.0,3.50811252]
[1759999223599,0.32648498,121470.0,121460.0,3.9893151]
[1759999223995,0.40879328,121470.0,121460.0,1.1008]
[1759999224196,0.43654328,121470.0,121460.0,1.11172]
[1759999224400,0.4568073,121470.0,121460.0,1.23172]
[1759999224898,1.12652472,121470.0,121460.0,0.4808]
[1759999225201,0.0988351,121460.0,121450.0,2.05556]
[1759999225399,1.05968455,121460.0,121450.0,2.80648]
[1759999225698,0.1250286,121440.0,121430.0,2.4164]
[1759999225901,0.40509254,121440.0,121430.0,0.5708]
[1759999226101,0.69506303,121440.0,121430.0,1.21176]
[1759999226296,1.05586303,121440.0,121430.0,0.75096]
[1759999226493,0.42534561,121440.0,121430.0,0.85096]
[1759999227401,0.40509254,121440.0,121430.0,0.85096]
[1759999228105,0.67480996,121440.0,121430.0,0.85096]
[1759999228300,0.1250354,121430.0,121420.0,0.3690913]
[1759999228499,0.4150354,121430.0,121420.0,0.6390913]
[1759999228708,0.4150354,121430.0,121420.0,3.4458913]
[1759999229405,0.4150354,121430.0,121420.0,2.6948913]
[1759999229606,0.4150354,121430.0,121420.0,3.4459313]
[1759999230804,0.1250422,121420.0,121410.0,7.719e-05]
[1759999231015,1.08586067,121420.0,121410.0,7.719e-05]
[1759999231306,1.08586067,121420.0,121410.0,0.74087719]
[1759999231509,0.81614325,121420.0,121410.0,0.74087719]
[1759999231710,1.08586067,121420.0,121410.0,7.719e-05]
[1759999231902,0.0988757,121400.0,121390.0,0.3608]
[1759999232100,0.0988757,121400.0,121370.0,2.41688]
[1759999232101,0.1250693,121380.0,121370.0,2.41688]
[1759999232306,0.3950693,121380.0,121370.0,3.47604995]
[1759999232913,0.39516007,121380.0,121370.0,2.72496995]
[1759999233107,0.39516007,121380.0,121370.0,3.47604995]
[1759999233702,0.39516007,121380.0,121370.0,2.72496995]
[1759999234305,0.39516007,121380.0,121370.0,3.47608995]
[1759999234699,0.39516007,121380.0,121370.0,0.48888995]
[1759999234912,0.39516007,121380.0,121370.0,1.24004995]
[1759999235105,0.39516007,121380.0,121370.0,1.40004995]
[1759999236216,0.39516007,121380.0,121370.0,1.40008995]
[1759999236712,0.28661077,121380.0,121370.0,1.13126605]
[1759999237012,0.28661077,121380.0,121370.0,2.15222347]
[1759999238810,0.28661077,121380.0,121370.0,2.06984737]
[1759999239214,0.28661077,121380.0,121370.0,1.04888995]
[1759999239411,0.36898007,121380.0,121370.0,1.04888995]
[1759999239613,0.36898007,121380.0,121370.0,2.72560995]
[1759999239912,0.39516007,121380.0,121370.0,0.66888995]
[1759999240115,0.39516007,121380.0,121370.0,3.47744995]
[1759999241208,0.36898007,121380.0,121370.0,2.72564995]
[1759999241412,0.28661077,121380.0,121370.0,3.39536737]
[1759999241613,0.28661077,121380.0,121370.0,4.22946347]
[1759999242013,0.28661077,121380.0,121370.0,4.22962347]
[1759999242220,0.28661077,121380.0,121370.0,4.14724737]
[1759999242517,0.36898007,121380.0,121370.0,2.72572995]
[1759999242717,0.36898007,121380.0,121370.0,3.47756995]
[1759999242921,0.36898007,121380.0,121370.0,0.66888995]
[1759999243215,0.39516007,121380.0,121370.0,2.74768]
[1759999243421,0.39516007,121380.0,121370.0,3.49964]
[1759999243917,0.39516007,121380.0,121370.0,2.74772]
[1759999244220,0.39516007,121380.0,121370.0,3.49972]
[1759999244515,0.66487749,121380.0,121370.0,3.28968]
[1759999244720,0.39516007,121380.0,121370.0,3.28964]
[1759999245019,0.39516007,121380.0,121370.0,3.14884]
[1759999245710,0.39516007,121380.0,121370.0,2.75772]
[1759999245916,0.39516007,121380.0,121370.0,2.91884]
[1759999246221,1.17617191,121380.0,121370.0,2.05692]
[1759999246516,0.81537191,121380.0,121370.0,2.90876]
[1759999246920,0.1239561,121370.0,121360.0,0.3829416]
[1759999247123,0.3939561,121370.0,121360.0,3.4187416]
[1759999247314,0.3939561,121370.0,121360.0,3.4518216]
[1759999247619,0.3939561,121370.0,121360.0,2.6999816]
[1759999247816,0.3682861,121370.0,121360.0,2.6999816]
[1759999248015,0.3682861,121370.0,121360.0,3.4518216]
[1759999248419,0.3682861,121370.0,121360.0,2.6999816]
[1759999248720,0.3682861,121370.0,121360.0,3.4517816]
[1759999249315,0.3939561,121370.0,121360.0,2.5401016]
[1759999249517,0.3939561,121370.0,121360.0,3.2918616]
[1759999250623,0.3939561,121370.0,121360.0,3.4518616]
[1759999250821,0.3939561,121370.0,121360.0,2.7001016]
[1759999251019,0.3939561,121370.0,121360.0,3.4517416]
[1759999251324,0.3682861,121370.0,121360.0,2.7001016]
[1759999251719,0.3748761,121370.0,121360.0,2.7001016]
[1759999252025,0.3748761,121370.0,121360.0,3.4517016]
[1759999252223,0.39506987,121370.0,121360.0,3.4517016]
[1759999252519,0.42073987,121370.0,121360.0,2.33122]
[1759999252822,1.09055393,121370.0,121360.0,2.07122]
[1759999253023,1.09055393,121370.0,121360.0,2.8229]
[1759999253323,0.82083651,121370.0,121360.0,0.0139]
[1759999253524,0.1247329,121360.0,121350.0,2.41816]
[1759999253725,0.66445032,121360.0,121350.0,2.05736]
[1759999253920,0.1247397,121350.0,121340.0,2.41816]
[1759999254223,0.71445712,121350.0,121340.0,3.29]
[1759999254423,0.73466957,121350.0,121340.0,0.3608]
[1759999254620,0.1247464,121340.0,121330.0,2.42643375]
[1759999254825,0.70455737,121340.0,121330.0,3.27996]
[1759999255027,0.43483995,121340.0,121330.0,3.50008]
[1759999255421,0.43483995,121340.0,121330.0,0.3608]
[1759999255626,0.45505351,121340.0,121330.0,3.1702]
[1759999255823,0.75790401,121340.0,121330.0,2.41824]
[1759999256021,1.15790401,121340.0,121330.0,2.05744]
[1759999256423,1.15790401,121340.0,121330.0,2.8094]
[1759999256720,0.85505351,121340.0,121330.0,2.9194]
[1759999256920,0.45505351,121340.0,121330.0,2.16744]
[1759999257127,0.45505351,121340.0,121330.0,2.33744]
[1759999257430,0.45505351,121340.0,121330.0,3.08944]
[1759999257622,0.37265711,121340.0,121330.0,2.7806432]
[1759999257826,0.34663711,121340.0,121330.0,2.69824]
[1759999258027,0.32642355,121340.0,121330.0,3.4834937]
[1759999258219,0.32642355,121340.0,121330.0,3.9326432]
[1759999258424,0.32642355,121340.0,121330.0,3.1806432]
[1759999259030,0.32642355,121340.0,121330.0,4.2361337]
[1759999259330,0.32642355,121340.0,121330.0,3.4834937]
[1759999259527,0.01642355,121340.0,121330.0,4.2360937]
[1759999259726,0.01122015,121350.0,121340.0,0.0823964]
[1759999259932,0.23122015,121350.0,121340.0,1.0460469]
[1759999260122,0.23122015,121350.0,121340.0,2.1988069]
[1759999260528,0.0225,121370.0,121350.0,0.0823897]
[1759999260725,0.66148968,121370.0,121360.0,0.3608]
[1759999261035,0.1247329,121360.0,121350.0,0.3608]
[1759999261239,0.4447329,121360.0,121350.0,1.7876]
[1759999261427,0.46463404,121360.0,121350.0,0.4708]
[1759999261730,0.46463404,121360.0,121350.0,2.71852]
[1759999261938,0.35623114,121360.0,121350.0,3.5037602]
[1759999262128,0.35623114,121360.0,121350.0,4.2598002]
[1759999262333,0.33633,121360.0,121350.0,3.5037602]
[1759999263231,0.32,121360.0,121350.0,4.5628107]
[1759999263432,0.23612,121360.0,121350.0,3.8066107]
[1759999263639,0.00697631,121360.0,121350.0,4.5628507]
[1759999263839,0.00697631,121360.0,121350.0,4.5628907]
[1759999264034,0.00697631,121360.0,121350.0,1.7488907]
[1759999264336,0.00697631,121360.0,121350.0,4.5628107]
[1759999264536,0.0039829,121360.0,121350.0,4.5628107]
[1759999264732,0.0039829,121360.0,121350.0,0.7431897]
[1759999265041,0.0039829,121360.0,121350.0,2.8008697]
[1759999265234,0.0039829,121360.0,121350.0,4.1627307]
[1759999265834,0.0039829,121360.0,121350.0,3.4065307]
[1759999266033,0.0039829,121360.0,121350.0,0.7431897]
[1759999266335,0.0039829,121360.0,121350.0,3.8597602]
[1759999266634,0.0039829,121360.0,121350.0,3.4212505]
[1759999266937,0.0039829,121360.0,121350.0,3.8596002]
[1759999267929,0.0039829,121360.0,121350.0,3.8064507]
[1759999268136,0.0039829,121360.0,121350.0,4.5623707]
[1759999269033,0.0039829,121360.0,121350.0,4.5625307]
[1759999270335,0.0039829,121360.0,121350.0,2.8007497]
[1759999270539,0.0039829,121360.0,121350.0,3.8596002]
[1759999271136,0.0039829,121360.0,121350.0,4.5624507]
[1759999272330,0.0039829,121360.0,121350.0,3.8064507]
[1759999272735,0.0039829,121360.0,121350.0,3.9563897]
[1759999272939,0.0039829,121360.0,121350.0,4.5620907]
[1759999273141,0.0039829,121360.0,121350.0,1.3488907]
[1759999273333,0.0039829,121360.0,121350.0,4.1618907]
[1759999273729,0.0039829,121360.0,121350.0,3.4062907]
[1759999274135,0.0039829,121360.0,121350.0,4.1618907]
[1759999274541,0.0105729,121360.0,121350.0,4.1618907]
[1759999274734,0.0105729,121360.0,121350.0,3.4062907]
[1759999275037,0.0105729,121360.0,121350.0,3.8062907]
[1759999275236,0.0105729,121360.0,121350.0,4.5617707]
[1759999275835,0.01597862,121370.0,121360.0,0.0823829]
[1759999276034,0.00582406,121370.0,121360.0,1.0460334]
[1759999276239,0.00582406,121370.0,121360.0,1.4460334]
[1759999276535,0.00468188,121400.0,121370.0,0.0823761]
[1759999276733,0.25468188,121400.0,121390.0,1.1068131]
[1759999276935,0.25468188,121400.0,121390.0,1.4068131]
[1759999277233,0.25468188,121400.0,121390.0,2.1096636]
[1759999277436,0.25468188,121400.0,121390.0,2.8657036]
[1759999277735,0.25468188,121400.0,121390.0,2.5628531]
[1759999278039,0.25468188,121400.0,121390.0,4.6203731]
[1759999278834,0.25468188,121400.0,121390.0,4.6202531]
[1759999279045,0.25468188,121400.0,121390.0,1.8068131]
[1759999279245,0.25468188,121400.0,121390.0,4.6201731]
[1759999281042,0.25468188,121400.0,121390.0,4.9230236]
[1759999281837,0.25468188,121400.0,121390.0,1.8068131]
[1759999282044,0.25468188,121400.0,121390.0,3.4638531]
[1759999282643,0.33703768,121400.0,121390.0,3.0786]
[1759999282837,0.25468188,121400.0,121390.0,3.8344]
[1759999283140,0.73703768,121400.0,121390.0,1.0216]
[1759999283337,0.73703768,121400.0,121390.0,3.0786]
[1759999283539,0.76305768,121400.0,121390.0,3.83468]
[1759999283946,0.76305768,121400.0,121390.0,1.0216]
[1759999284147,0.76305768,121400.0,121390.0,2.71776]
[1759999284347,0.76305768,121400.0,121390.0,3.47384]
[1759999284550,0.76305768,121400.0,121390.0,2.71776]
[1759999284748,0.76305768,121400.0,121390.0,3.47388]
[1759999285149,0.73703768,121400.0,121390.0,3.47388]
[1759999285442,0.65468188,121400.0,121390.0,3.0206105]
[1759999285649,0.65468188,121400.0,121390.0,2.71776]
[1759999285849,0.73703768,121400.0,121390.0,2.71776]